bitfinex/quotes_ETHUSD_20220305
["timestamp","ask_amount","ask_price","bid_price","bid_amount"]
[1646489283300,2.0,2634.8,2633.6,3.50096]
[1646489283301,1.3788,2634.8,2633.6,3.50096]
[1646489283504,0.00302252,2634.3,2633.7,0.00096]
[1646489283703,0.00302252,2634.3,2633.6,3.5]
[1646489283935,0.00302252,2634.3,2634.2,1.06856203]
[1646489284337,1.09515702,2635.3,2634.2,1.06856203]
[1646489284338,1.77734895,2635.3,2634.2,1.06856203]
[1646489284536,0.68219193,2635.3,2634.2,1.06856203]
[1646489284736,0.00302252,2634.3,2634.2,1.06856203]
[1646489284937,0.00302252,2634.3,2633.8,0.545]
[1646489285537,3.17447884,2635.6,2633.7,0.00096]
[1646489285538,2.50812408,2635.0,2633.7,0.00096]
[1646489285740,1.82593215,2634.9,2633.6,3.49676466]
[1646489285939,0.00293192,2634.3,2633.6,3.49676466]
[1646489286141,0.00293192,2634.3,2633.6,1.0]
[1646489286339,1.40006407,2634.5,2633.7,4.4238]
[1646489286541,1.0,2635.0,2633.7,4.4238]
[1646489286740,0.68219193,2635.1,2633.7,4.045]
[1646489287342,0.89660723,2635.0,2633.7,4.045]
[1646489287579,0.89660723,2635.0,2633.8,3.5]
[1646489288380,1.27540723,2635.0,2633.8,3.5]
[1646489288583,1.27540723,2635.0,2633.7,0.90846784]
[1646489288584,2.25759916,2635.0,2633.7,0.90846784]
[1646489288786,1.06099193,2634.9,2633.5,2.74729079]
[1646489289083,1.06099193,2634.9,2633.6,0.95294277]
[1646489289283,0.3788,2634.9,2633.6,0.95294277]
[1646489289483,0.00302266,2634.5,2633.7,0.00096]
[1646489290385,0.3788,2634.9,2633.7,0.00096]
[1646489290585,0.00302252,2634.4,2633.7,0.00096]
[1646489290786,0.00302252,2634.4,2634.0,1.09273962]
[1646489291631,0.68219193,2635.2,2634.0,1.09273962]
[1646489291838,0.68219193,2635.2,2634.1,3.5]
[1646489292036,0.0030226,2634.4,2634.0,1.09273962]
[1646489292637,0.0030226,2634.4,2634.2,0.3788]
[1646489292838,0.90809521,2635.5,2634.3,4.4238]
[1646489292839,0.68219193,2635.5,2634.3,4.4238]
[1646489293038,0.68219193,2635.6,2634.4,0.9238]
[1646489293337,1.68219193,2635.7,2634.5,3.5]
[1646489293739,1.0,2635.7,2634.9,0.9109957]
[1646489294337,0.00207775,2635.2,2635.0,0.8348]
[1646489295079,1.0,2635.7,2635.0,0.8348]
[1646489295281,0.68219193,2636.0,2635.0,0.8348]
[1646489295479,0.00207775,2635.2,2634.6,4.5]
[1646489295680,0.00207775,2635.2,2634.6,1.0]
[1646489295878,0.00207775,2635.2,2634.4,0.706]
[1646489296079,0.00207775,2635.2,2634.5,3.5]
[1646489296279,0.68219193,2635.8,2634.5,4.5]
[1646489296483,0.93093588,2635.4,2634.1,1.0]
[1646489296683,0.00207775,2634.9,2633.7,3.75096]
[1646489297582,0.3788,2635.3,2633.7,3.75096]
[1646489297787,1.11281717,2634.7,2633.7,3.75096]
[1646489297986,0.00302522,2634.4,2633.7,3.75096]
[1646489298186,0.00302522,2634.4,2633.5,0.00096]
[1646489298387,0.00302522,2634.4,2633.1,0.28446484]
[1646489298388,1.19622522,2634.4,2633.2,3.50096]
[1646489298586,0.81742522,2634.4,2633.5,0.00096]
[1646489298840,0.8144,2634.4,2633.4,3.8788]
[1646489299033,0.8144,2634.4,2633.5,0.00096]
[1646489299231,0.81742495,2634.4,2633.5,3.50096]
[1646489299632,1.18712399,2634.3,2633.5,3.50096]
[1646489300032,1.18712399,2634.3,2633.5,0.00096]
[1646489300931,0.00302495,2634.4,2633.5,0.00096]
[1646489301332,4.5,2635.1,2633.5,0.00096]
[1646489301536,0.00302491,2634.4,2633.5,0.00096]
[1646489302333,0.91129835,2634.5,2633.5,0.00096]
[1646489302792,0.0029342,2634.4,2633.5,0.00096]
[1646489303393,0.0029342,2634.4,2633.2,0.00096]
[1646489303697,0.91129835,2634.5,2633.2,0.00096]
[1646489303894,0.0029342,2634.4,2633.2,0.00096]
[1646489304594,0.86423255,2634.5,2633.2,0.00096]
[1646489304793,0.3788,2634.9,2633.5,1.47881277]
[1646489304993,0.3788,2634.9,2633.6,0.00096]
[1646489305193,0.00293408,2634.4,2633.6,0.00096]
[1646489305395,0.00293408,2634.4,2633.7,0.3788]
[1646489305693,0.00293408,2634.4,2633.9,0.3788]
[1646489305894,0.00293408,2634.4,2634.2,0.92844321]
[1646489306093,1.059937,2635.3,2634.2,0.92844321]
[1646489306344,1.39182125,2635.2,2634.2,0.92844321]
[1646489307033,1.39182125,2635.2,2633.8,0.3788]
[1646489308237,1.39182125,2635.2,2634.0,1.06671484]
[1646489308639,0.00283398,2634.6,2634.0,1.06671484]
[1646489309639,1.39182125,2635.2,2634.0,1.06671484]
[1646489309841,0.00291438,2634.5,2634.0,1.06671484]
[1646489310084,0.00291438,2634.5,2633.8,0.3788]
[1646489310284,0.00291438,2634.5,2633.7,0.456]
[1646489310486,0.00291438,2634.5,2633.5,0.01122371]
[1646489310890,0.3,2635.0,2633.2,0.00096]
[1646489310891,0.3788,2634.7,2633.2,0.00096]
[1646489311088,0.3788,2634.7,2633.3,1.15290755]
[1646489311089,1.06561608,2634.4,2633.3,1.15290755]
[1646489311288,1.06561608,2634.4,2633.5,0.01122371]
[1646489311688,0.00291423,2634.5,2633.5,0.01122371]
[1646489312093,5.27027967,2634.9,2633.4,0.00096]
[1646489312289,0.00291411,2634.5,2633.4,0.01218408]
[1646489313288,1.49892807,2634.6,2633.4,0.00096]
[1646489313489,0.00283551,2634.5,2633.4,0.01113562]
[1646489314332,0.00283551,2634.5,2633.5,0.12569441]
[1646489314531,1.40411905,2634.5,2633.5,0.12569441]
[1646489314735,1.40695456,2634.5,2633.4,0.01113562]
[1646489314936,1.40695456,2634.5,2633.5,0.12564141]
[1646489315738,1.40411905,2634.5,2633.5,0.12564141]
[1646489315937,1.4069546,2634.5,2633.5,0.01017543]
[1646489316538,2.08914653,2634.5,2633.5,0.01017543]
[1646489316738,2.08914653,2634.5,2633.6,0.12778682]
[1646489316938,2.08631098,2634.5,2633.6,0.12778682]
[1646489317139,2.08916421,2634.5,2633.5,0.01041133]
[1646489317583,4.18219193,2634.4,2633.5,0.01041133]
[1646489317788,4.18219193,2634.4,2633.3,0.00260297]
[1646489317789,0.00869042,2633.4,2633.3,0.00260297]
[1646489317988,0.00869042,2633.4,2633.2,0.13187887]
[1646489320790,0.00869042,2633.4,2633.2,0.13490715]
[1646489321436,0.00869042,2633.4,2633.3,0.99262803]
[1646489321634,0.00869042,2633.4,2633.3,1.1245069]
[1646489326487,0.00869042,2633.4,2633.3,0.13187887]
[1646489326888,0.00869042,2633.4,2633.2,0.13484707]
[1646489327089,0.00213312,2633.4,2633.2,0.13484707]
[1646489327488,0.00213312,2633.4,2633.3,1.2156635]
[1646489327689,0.00213312,2633.4,2633.3,1.34754237]
[1646489327892,0.00213312,2633.4,2633.3,1.29754237]
[1646489328690,0.00213312,2633.4,2633.3,1.67634237]
[1646489328935,0.00213312,2633.4,2633.3,13.66234237]
[1646489329135,0.00213312,2633.4,2633.3,2.82137429]
[1646489329533,3.312e-05,2633.4,2633.3,6.13234237]
[1646489329733,3.312e-05,2633.4,2633.3,7.06154802]
[1646489329934,3.312e-05,2633.4,2633.3,19.74684802]
[1646489330443,3.312e-05,2633.4,2633.3,18.58118452]
[1646489331141,3.312e-05,2633.4,2633.3,17.65197887]
[1646489331545,3.312e-05,2633.4,2633.3,19.03310959]
[1646489331840,3.312e-05,2633.4,2633.3,20.03310959]
[1646489332043,0.00294098,2633.9,2633.7,11.9088]
[1646489332241,0.00294098,2633.9,2633.8,14.14343123]
[1646489332443,0.68219193,2635.1,2633.9,0.3788]
[1646489332686,1.40422442,2635.0,2634.1,0.3788]
[1646489332889,1.40422442,2634.9,2634.2,0.13187887]
[1646489333090,0.90809521,2635.4,2634.2,0.13187887]
[1646489333091,1.40422442,2634.8,2634.5,1.32811]
[1646489333287,1.40422442,2634.7,2634.6,0.96667887]
[1646489333486,0.68219193,2635.4,2634.6,0.96667887]
[1646489333686,0.68219193,2635.4,2634.7,0.13187887]
[1646489334086,0.00290742,2634.8,2634.7,0.13187887]
[1646489334286,0.00290742,2634.8,2634.2,1.5941]
[1646489334486,0.00290742,2634.8,2634.3,0.1319463]
[1646489334887,1.40422442,2635.0,2634.3,0.1319463]
[1646489335086,1.40422442,2634.9,2634.3,0.1319463]
[1646489335288,0.00290746,2634.6,2634.4,0.1319463]
[1646489335585,0.00290746,2634.6,2634.5,0.1319463]
[1646489335987,0.00290746,2634.6,2634.2,0.1319463]
[1646489336190,0.68219193,2635.2,2634.2,0.1319463]
[1646489336432,0.00284404,2634.7,2634.2,0.1319463]
[1646489336731,0.00284404,2634.7,2634.3,0.1319463]
[1646489336933,0.00284404,2634.7,2634.4,0.1319463]
[1646489337131,0.00284404,2634.7,2634.5,0.1319463]
[1646489337432,1.40422442,2635.1,2634.1,12.3648]
[1646489337637,0.00284405,2634.6,2634.2,0.13181075]
[1646489338439,4.78689521,2635.6,2634.2,0.13181075]
[1646489338440,1.40422442,2634.7,2634.3,0.90769373]
[1646489338638,1.86651651,2635.4,2634.4,0.13181075]
[1646489338837,0.00284408,2634.5,2634.4,0.13181075]
[1646489339039,0.00204408,2634.5,2634.4,0.13181075]
[1646489339441,0.00204408,2634.5,2634.4,12.49661075]
[1646489339640,1.40302492,2634.9,2634.4,12.49661075]
[1646489339840,0.68219193,2635.4,2634.5,0.13181075]
[1646489340490,0.68219193,2635.5,2634.5,0.96661075]
[1646489340691,0.68219193,2635.5,2634.6,0.13181075]
[1646489340993,1.40302492,2635.4,2634.6,0.13181075]
[1646489341193,1.40302492,2635.3,2634.6,0.13181075]
[1646489341392,1.40302492,2635.2,2634.6,0.13181075]
[1646489341591,1.40302492,2635.1,2634.6,0.13181075]
[1646489341791,1.40302492,2635.0,2634.3,1.1573]
[1646489341993,1.40302492,2635.0,2634.2,0.456]
[1646489341994,1.40302492,2634.9,2634.4,0.13166319]
[1646489342192,1.40302492,2634.8,2634.5,0.13166319]
[1646489342392,1.89169735,2635.4,2634.6,0.13166319]
[1646489342592,1.40212218,2635.3,2634.2,0.456]
[1646489342995,1.40212218,2635.3,2634.3,0.1316439]
[1646489343600,0.00302996,2634.9,2634.3,12.0404439]
[1646489343845,0.00302996,2634.9,2634.4,0.1316439]
[1646489344445,1.40212218,2635.3,2634.4,0.1316439]
[1646489344845,0.00302999,2634.8,2634.4,0.1316439]
[1646489345447,0.00302999,2634.8,2634.4,1.22895035]
[1646489345646,1.40212218,2635.3,2634.5,0.1316439]
[1646489346047,0.00303001,2634.7,2634.5,0.1316439]
[1646489346349,0.00303001,2634.7,2634.6,0.1316439]
[1646489346546,0.00303001,2634.7,2634.3,12.9088]
[1646489346746,0.00303001,2634.7,2634.4,0.13147109]
[1646489346946,1.40212218,2635.0,2634.4,0.13147109]
[1646489347146,1.40212218,2634.9,2634.4,0.13147109]
[1646489347346,0.00302999,2634.8,2634.4,0.13147109]
[1646489347584,0.00302999,2634.8,2634.2,0.456]
[1646489348187,0.98902091,2635.1,2634.2,0.456]
[1646489348388,0.00293005,2634.6,2634.2,0.456]
[1646489348790,0.00293005,2634.6,2634.2,0.6457]
[1646489349392,0.98902091,2635.1,2634.2,0.6457]
[1646489349589,0.00293008,2634.5,2634.2,0.456]
[1646489350593,0.98902091,2635.1,2634.2,0.456]
[1646489350794,0.0029301,2634.5,2634.2,0.456]
[1646489351836,0.3788,2635.4,2634.2,0.456]
[1646489352038,0.00283888,2634.5,2634.2,0.456]
[1646489352641,0.00283888,2634.5,2634.3,1.1243141]
[1646489352843,1.05889669,2635.4,2634.3,1.5803141]
[1646489353244,0.00283888,2634.5,2634.3,1.5803141]
[1646489353643,0.00283888,2634.5,2634.4,3.5]
[1646489354042,1.43769669,2635.4,2634.4,1.0]
[1646489354043,1.05889669,2635.4,2634.4,1.0]
[1646489354248,1.05889669,2635.4,2634.5,3.5]
[1646489354447,0.00283885,2634.6,2634.5,3.5]
[1646489354647,0.00283885,2634.6,2634.5,1.0]
[1646489354848,0.00283885,2634.6,2634.3,4.956]
[1646489355094,0.00283885,2634.6,2634.3,5.53505823]
[1646489355284,1.05889669,2635.4,2634.3,5.53505823]
[1646489355785,0.00285937,2634.6,2634.3,5.53505823]
[1646489356183,0.00285937,2634.6,2634.4,0.89646649]
[1646489356386,0.00285937,2634.6,2634.5,3.5]
[1646489356584,1.05889669,2635.4,2634.5,3.5]
[1646489356789,0.00285937,2634.6,2634.5,4.5]
[1646489356986,0.00285937,2634.6,2634.5,3.5]
[1646489357186,0.00285937,2634.6,2634.5,4.5]
[1646489357890,1.43769669,2635.4,2634.5,4.5]
[1646489357891,1.05889669,2635.4,2634.5,4.5]
[1646489358091,0.00285934,2634.7,2634.5,4.5]
[1646489359037,1.05889669,2635.4,2634.7,0.0008]
[1646489360433,0.00276992,2635.2,2634.7,0.0008]
[1646489361436,1.05889669,2635.4,2634.7,0.0008]
[1646489361635,0.00276994,2635.1,2634.7,0.0008]
[1646489362687,1.05889669,2635.4,2634.7,0.0008]
[1646489362889,0.00261845,2635.0,2634.7,0.0008]
[1646489363889,1.05889669,2635.4,2634.7,0.0008]
[1646489364087,0.00261847,2635.0,2634.7,0.0008]
[1646489364988,1.05889669,2635.4,2634.7,0.0008]
[1646489365187,0.00261847,2635.0,2634.7,0.0008]
[1646489366090,1.05889669,2635.4,2634.7,0.0008]
[1646489366338,0.00262506,2635.0,2634.7,0.0008]
[1646489366541,0.92795679,2635.0,2634.7,0.0008]
[1646489367342,0.92533173,2635.0,2634.7,0.0008]
[1646489367538,1.40282736,2634.9,2634.7,0.0008]
[1646489368740,1.40545244,2634.9,2634.7,0.0008]
[1646489369846,1.40282736,2634.9,2634.7,0.0008]
[1646489370094,1.40282736,2634.8,2634.7,0.0008]
[1646489370288,0.00262468,2634.9,2634.7,0.0008]
[1646489370488,0.68481661,2634.9,2634.7,0.0008]
[1646489370889,0.68219193,2634.9,2634.7,0.0008]
[1646489371287,0.68481661,2634.9,2634.7,0.0008]
[1646489371488,1.40282736,2634.8,2634.7,0.0008]
[1646489371889,0.00262468,2634.9,2634.7,0.0008]
[1646489372091,0.68219193,2635.0,2634.7,0.0008]
[1646489372291,1.40282736,2635.0,2634.7,0.0008]
[1646489372496,1.40545205,2634.9,2634.7,0.0008]
[1646489372691,0.00262469,2634.9,2634.7,0.0008]
[1646489373191,0.00262469,2634.9,2634.3,0.1313967]
[1646489373192,6.041e-05,2634.7,2634.3,0.1313967]
[1646489374239,6.041e-05,2634.7,2634.3,0.82866556]
[1646489374443,6.041e-05,2634.7,2634.4,3.5]
[1646489374642,6.041e-05,2634.7,2634.5,0.1313967]
[1646489374843,0.00262479,2634.6,2634.5,0.1313967]
[1646489375944,6.041e-05,2634.7,2634.5,0.1313967]
[1646489376243,0.00268518,2634.7,2634.5,0.1313967]
[1646489376443,0.00268518,2634.7,2634.3,0.82866556]
[1646489376643,0.00268518,2634.7,2634.4,0.1313967]
[1646489377043,6.041e-05,2634.7,2634.5,0.1313967]
[1646489377245,0.00262487,2634.6,2634.2,4.6897]
[1646489377443,0.00262487,2634.6,2634.3,0.13173771]
[1646489378097,6.041e-05,2634.7,2634.3,0.13173771]
[1646489378297,1.40288777,2634.7,2634.3,0.13173771]
[1646489378499,1.40545225,2634.6,2634.3,0.13173771]
[1646489378699,1.40282736,2634.5,2634.3,0.13173771]
[1646489378900,1.40282736,2634.4,2634.3,0.13173771]
[1646489379099,6.041e-05,2634.7,2634.6,0.23570297]
[1646489379299,6.041e-05,2634.7,2634.6,0.36744068]
[1646489380802,1.4094694,2634.7,2634.6,0.36744068]
[1646489381003,6.041e-05,2634.7,2634.6,0.36744068]
[1646489385108,1.4094694,2634.7,2634.6,0.36744068]
[1646489385300,6.041e-05,2634.7,2634.6,0.36744068]
[1646489388304,1.4094694,2634.7,2634.6,0.36744068]
[1646489389136,6.041e-05,2634.7,2634.6,0.36744068]
[1646489392339,0.6746507,2635.1,2634.6,0.36744068]
[1646489392584,0.6746507,2635.1,2634.7,0.13173771]
[1646489392787,0.00262442,2634.8,2634.7,0.13173771]
[1646489393789,1.05998021,2635.2,2634.7,0.13173771]
[1646489393990,1.40940899,2635.1,2634.7,0.13173771]
[1646489394688,2.4693892,2635.2,2634.7,0.13173771]
[1646489394891,4.90940899,2635.1,2634.7,0.13173771]
[1646489395091,1.40940899,2635.0,2634.7,0.13173771]
[1646489395291,1.41203338,2635.0,2634.7,0.13173771]
[1646489395490,1.40940899,2634.9,2634.7,0.13173771]
[1646489395690,1.40940899,2634.8,2634.7,0.13173771]
[1646489395898,0.00262439,2635.0,2634.7,0.13173771]
[1646489396096,0.8607196,2635.1,2634.7,0.13173771]
[1646489396542,0.00262438,2634.9,2634.7,0.13173771]
[1646489397444,0.151898,2635.0,2634.7,0.13173771]
[1646489397643,1.40940899,2634.9,2634.7,0.13173771]
[1646489398046,1.40940899,2634.8,2634.7,0.13173771]
[1646489398448,0.8607196,2635.1,2634.7,0.13173771]
[1646489398845,0.86334339,2635.1,2634.7,0.13173771]
[1646489399246,0.86334339,2635.1,2634.6,0.23570297]
[1646489399446,0.86334339,2635.1,2634.7,0.1326031]
[1646489399844,0.8607196,2635.1,2634.7,0.1326031]
[1646489400120,0.86334346,2635.1,2634.7,0.1326031]
[1646489400317,1.84565352,2635.1,2634.7,0.1326031]
[1646489400515,1.40940899,2635.0,2634.7,0.1326031]
[1646489402421,2.1020467,2634.9,2634.7,0.1326031]
[1646489402619,1.40940899,2634.8,2634.6,0.23570297]
[1646489402820,1.40940899,2634.7,2634.6,0.23570297]
[1646489403021,1.40940899,2634.7,2634.6,0.36831503]
[1646489403726,0.69263771,2634.9,2634.6,0.36831503]
[1646489403963,0.69263771,2634.9,2634.7,0.13261206]
[1646489408292,1.40940899,2634.8,2634.7,0.13261206]
[1646489409291,2.1020467,2635.0,2634.7,0.13261206]
[1646489409695,1.40940899,2634.9,2634.7,0.13261206]
[1646489409892,1.40940899,2634.8,2634.7,0.13261206]
[1646489410094,2.1020467,2635.0,2634.7,0.13261206]
[1646489410896,1.40940899,2634.9,2634.7,0.13261206]
[1646489411096,2.1020467,2635.0,2634.7,0.13261206]
[1646489411375,1.40940899,2634.9,2634.7,0.13261206]
[1646489411564,1.40940899,2634.8,2634.7,0.13261206]
[1646489411762,2.1020467,2635.0,2634.7,0.13261206]
[1646489411960,1.40940899,2634.9,2634.7,0.13261206]
[1646489412161,1.40940899,2634.8,2634.7,0.13261206]
[1646489412363,4.90940899,2634.8,2634.0,0.01300639]
[1646489412564,4.73963771,2634.8,2634.0,0.01300639]
[1646489412768,0.69263771,2634.4,2634.0,0.01300639]
[1646489412972,0.69263771,2634.1,2633.9,0.0032772]
[1646489414367,0.69263771,2634.2,2633.9,0.0032772]
[1646489414966,0.69263771,2634.3,2633.9,0.0032772]
[1646489415588,0.69263771,2634.6,2633.9,0.0032772]
[1646489415989,1.84783771,2634.7,2633.9,0.0032772]
[1646489416591,1.84783771,2634.7,2634.1,0.97320026]
[1646489416793,0.69504794,2634.7,2634.1,0.97320026]
[1646489416992,0.00241023,2634.7,2634.1,0.97320026]
[1646489417191,0.00241023,2634.7,2634.1,1.89900026]
[1646489417392,0.00241023,2634.7,2634.3,11.9088]
[1646489417591,0.00241023,2634.7,2634.4,0.547]
[1646489417996,0.00241023,2634.7,2634.5,1.22632845]
[1646489418400,0.00241023,2634.7,2634.5,1.77332845]
[1646489419237,0.02156175,2634.6,2634.5,1.77332845]
[1646489419440,0.02397198,2634.6,2634.5,1.77332845]
[1646489420040,0.00289866,2635.1,2634.6,5.3812]
[1646489420240,3.83961059,2635.4,2634.7,4.29725504]
[1646489420442,0.0027857,2635.1,2634.8,0.9491345]
[1646489420639,0.0027857,2635.1,2634.9,0.547]
[1646489421244,0.0027857,2635.1,2635.0,1.08850025]
[1646489421440,0.69263771,2635.8,2635.0,2.01430025]
[1646489421640,0.00184063,2635.1,2635.0,2.01430025]
[1646489422690,0.69263771,2635.8,2635.4,0.93671393]
[1646489423492,0.69263771,2635.9,2635.4,0.93671393]
[1646489423692,0.69263771,2636.0,2635.4,1.48371393]
[1646489424092,0.00195384,2635.7,2635.4,1.48371393]
[1646489424597,0.00195384,2635.7,2635.4,2.43266393]
[1646489424992,0.69263771,2636.3,2635.4,2.43266393]
[1646489425393,0.0029014,2635.7,2635.5,1.15466334]
[1646489425594,0.0029014,2635.7,2635.5,1.70166334]
[1646489426192,0.69263771,2636.3,2635.5,1.70166334]
[1646489426441,0.69263771,2636.3,2636.0,1.1666641]
[1646489426742,2.1674,2636.7,2636.0,1.1666641]
[1646489426743,0.69263771,2636.5,2636.0,1.1666641]
[1646489426941,0.69263771,2636.7,2636.1,4.047]
[1646489427145,3.93947486,2637.1,2636.1,4.047]
[1646489427146,4.63211257,2637.1,2636.1,6.32293]
[1646489427341,4.63211257,2637.1,2636.2,0.94859]
[1646489427342,3.93947486,2637.1,2636.2,0.94859]
[1646489427546,3.93947486,2637.1,2636.7,0.99468734]
[1646489427748,0.69263771,2637.2,2636.7,0.99468734]
[1646489427749,0.00733166,2636.9,2636.7,0.99468734]
[1646489428447,0.65162888,2637.4,2636.7,0.99468734]
[1646489428646,0.00173851,2637.3,2636.7,0.99468734]
[1646489428848,0.00183319,2636.9,2636.7,0.99468734]
[1646489429248,0.00183319,2636.9,2636.7,4.49468734]
[1646489429648,0.00183319,2636.9,2636.8,3.5]
[1646489429846,0.00173851,2637.5,2636.8,3.5]
[1646489430089,4.00173851,2637.6,2637.1,1.11929446]
[1646489430290,0.04035806,2637.5,2636.8,3.49096689]
[1646489430489,0.04035806,2637.5,2636.6,5.2895]
[1646489430688,0.04209657,2637.5,2636.6,5.2895]
[1646489430891,0.04209657,2637.5,2636.6,8.7895]
[1646489431297,0.00290386,2637.2,2636.6,8.7895]
[1646489431696,0.00290386,2637.2,2636.6,22.64675]
[1646489432395,1.418388,2637.4,2637.3,0.96475858]
[1646489432596,1.42849194,2637.4,2637.3,4.46475858]
[1646489432797,1.42849194,2637.4,2637.3,0.96475858]
[1646489432996,0.01161392,2637.4,2637.3,5.01175858]
[1646489433498,0.04035806,2637.5,2637.3,5.39055858]
[1646489433696,0.04035806,2637.5,2637.3,1.51175858]
[1646489433938,0.04326181,2637.5,2637.3,5.01175858]
[1646489434238,0.04326181,2637.5,2637.3,1.51175858]
[1646489434435,0.01161326,2637.9,2637.4,4.0]
[1646489434637,0.01161326,2637.9,2637.4,8.047]
[1646489434840,0.00173851,2638.5,2637.4,20.9558]
[1646489435038,8.676e-05,2637.5,2637.4,21.1453]
[1646489435237,0.01074542,2637.9,2637.6,11.9088]
[1646489435441,0.01074542,2637.9,2637.8,1.0339544]
[1646489435637,0.01074542,2637.9,2637.8,1.5809544]
[1646489435837,0.00173851,2638.9,2637.8,1.5809544]
[1646489436737,0.00173851,2638.9,2637.6,1.1935]
[1646489436937,0.92351609,2638.8,2637.6,4.6935]
[1646489437144,0.00173851,2638.7,2637.6,4.6935]
[1646489437346,0.00173851,2638.7,2637.7,3.5]
[1646489437589,0.00173851,2638.7,2637.6,4.6935]
[1646489438095,0.00173851,2638.7,2637.8,4.67089871]
[1646489438297,0.00173851,2638.8,2637.8,1.17089871]
[1646489438494,0.00302832,2638.3,2637.8,1.17089871]
[1646489439496,0.00173851,2638.6,2637.9,1.05070335]
[1646489439694,0.00302835,2638.2,2637.9,1.05070335]
[1646489440696,0.00302835,2638.2,2637.6,0.70550237]
[1646489440697,0.00173851,2638.6,2637.6,0.70550237]
[1646489440894,0.00173851,2638.8,2637.6,0.70550237]
[1646489441198,0.00302835,2638.2,2637.6,4.20550237]
[1646489441637,0.00302835,2638.2,2637.6,0.70550237]
[1646489441840,0.00173851,2638.6,2637.6,0.70550237]
[1646489442038,0.00173851,2638.6,2637.9,1.21277684]
[1646489442238,0.70223284,2638.8,2637.9,1.21277684]
[1646489442239,0.00302841,2638.0,2637.9,1.21277684]
[1646489443042,0.0192526,2638.8,2637.9,1.40227684]
[1646489443243,0.0192526,2638.8,2638.0,0.1895]
[1646489443445,0.00293754,2638.1,2638.0,0.1895]
[1646489443643,0.00293754,2638.1,2638.0,4.2365]
[1646489443843,0.00293754,2638.1,2638.0,5.18446]
[1646489444043,0.00293754,2638.1,2638.0,4.2365]
[1646489444243,0.0192526,2638.1,2638.0,0.1895]
[1646489444652,0.0192526,2638.1,2637.8,0.1895]
[1646489444948,0.0192526,2638.1,2637.7,2.2687]
[1646489445192,0.0192526,2638.1,2637.7,5.7687]
[1646489445594,0.0192526,2638.1,2637.8,0.86458102]
[1646489445793,0.00293755,2638.0,2637.8,0.86458102]
[1646489445993,0.00293755,2638.0,2637.7,2.2687]
[1646489446194,0.02219015,2638.0,2637.7,2.2687]
[1646489446395,0.02219015,2638.0,2637.6,5.81080237]
[1646489446797,0.0192526,2638.0,2637.6,9.31080237]
[1646489446995,0.02208461,2638.0,2637.6,9.31080237]
[1646489447399,0.02208461,2638.0,2637.6,5.81080237]
[1646489447999,0.0192526,2638.0,2637.8,1.16199438]
[1646489448200,0.00283203,2637.9,2637.8,1.16199438]
[1646489448599,0.00283203,2637.9,2637.6,2.31080237]
[1646489448853,0.00283203,2637.9,2637.5,0.04090617]
[1646489449042,0.0192526,2638.0,2637.5,3.54090617]
[1646489449447,0.00283204,2637.9,2637.5,3.54090617]
[1646489450250,0.02208464,2637.9,2637.5,3.54090617]
[1646489450550,0.00285581,2637.8,2637.5,0.04090617]
[1646489451150,0.02210841,2637.8,2637.6,1.18328348]
[1646489451552,0.0192526,2637.8,2637.6,1.18328348]
[1646489451850,0.02210842,2637.8,2637.6,1.18328348]
[1646489452250,0.02210842,2637.8,2637.7,3.5]
[1646489452450,0.02210842,2637.8,2637.6,1.18328348]
[1646489452694,0.02210842,2637.8,2637.6,4.68328348]
[1646489452895,0.0192526,2637.8,2637.6,4.68328348]
[1646489453094,0.0192526,2637.8,2637.7,3.5]
[1646489453292,0.0192526,2637.8,2637.7,15.9558]
[1646489453493,5.26e-05,2637.8,2637.7,18.1309]
[1646489454294,5.26e-05,2637.8,2637.7,6.6009]
[1646489455194,5.26e-05,2637.8,2637.7,2.7221]
[1646489455398,5.26e-05,2637.8,2637.7,6.6009]
[1646489455594,5.26e-05,2637.8,2637.7,5.6009]
[1646489455795,5.26e-05,2637.8,2637.7,6.6009]
[1646489456196,5.26e-05,2637.8,2637.7,2.7221]
[1646489456639,5.26e-05,2637.8,2637.7,1.7221]
[1646489456841,5.26e-05,2637.8,2637.7,2.7221]
[1646489457039,5.26e-05,2637.8,2637.7,1.7221]
[1646489457242,5.26e-05,2637.8,2637.7,6.6009]
[1646489457442,5.26e-05,2637.8,2637.7,5.6009]
[1646489457642,5.26e-05,2637.8,2637.7,6.6009]
[1646489457843,5.26e-05,2637.8,2637.7,18.1309]
[1646489459247,1.37223139,2639.2,2637.9,0.3795474]
[1646489459448,1.37223139,2639.2,2638.1,0.3788]
[1646489459947,1.37223139,2639.2,2638.2,15.4088]
[1646489460193,0.00173851,2639.2,2638.4,11.9088]
[1646489460392,4.53098024,2639.8,2638.5,0.9258]
[1646489460393,1.31488354,2639.7,2638.5,0.9258]
[1646489460596,1.31488354,2639.7,2639.0,0.89864816]
[1646489460993,1.31314503,2639.6,2639.0,0.89864816]
[1646489461197,1.31314503,2639.5,2639.0,0.89864816]
[1646489461495,0.68298024,2639.9,2639.0,0.89864816]
[1646489461496,1.31314503,2639.4,2639.0,0.89864816]
[1646489461696,1.31314503,2639.3,2639.0,0.89864816]
[1646489461896,1.31314503,2639.2,2639.0,0.89864816]
[1646489462096,0.00173851,2639.7,2639.0,0.89864816]
[1646489462397,0.92351609,2640.5,2639.1,3.5]
[1646489462398,0.00173851,2639.8,2639.1,3.5]
[1646489462595,1.25879088,2640.4,2639.1,3.5]
[1646489462596,0.00173851,2640.2,2639.1,3.5]
[1646489462797,1.25879088,2640.4,2639.1,3.5]
[1646489462798,0.00173851,2639.8,2639.1,3.5]
[1646489462997,1.318001,2640.3,2639.1,3.5]
[1646489463399,1.218001,2640.3,2639.7,0.93692942]
[1646489463599,0.00173851,2640.3,2639.8,3.5]
[1646489463852,0.00173851,2640.3,2639.7,0.93692942]
[1646489463853,0.00999088,2640.4,2639.7,0.93692942]
[1646489464040,0.00999088,2640.4,2639.8,3.5]
[1646489464542,0.00999088,2640.4,2639.8,4.4258]
[1646489464741,0.00999088,2640.4,2639.8,5.4258]
[1646489464941,0.00999088,2640.4,2639.8,5.047]
[1646489465142,0.00999088,2640.4,2639.8,1.0]
[1646489465340,0.00999088,2640.4,2639.6,4.76295609]
[1646489465540,0.00999088,2640.4,2639.6,1.26295609]
[1646489466040,0.01172939,2640.4,2639.6,1.26295609]
[1646489466242,0.01172939,2640.4,2639.6,0.05745609]
[1646489466440,0.01172939,2640.4,2639.1,3.3982]
[1646489466441,0.3788,2640.4,2639.1,3.3982]
[1646489466641,0.3788,2640.4,2639.1,6.8982]
[1646489466841,0.3788,2640.4,2639.1,4.3982]
[1646489467445,0.3788,2640.4,2639.1,3.3814573]
[1646489467698,0.3788,2640.4,2639.1,6.8814573]
[1646489468200,1.20101454,2640.1,2639.1,2.3814573]